fUST/lending_fUST_20240902
["ID","MTS","AMOUNT","RATE_DAILY","PERIOD"]
[336953301,1725262245219,-904.35,0.00026301,2]
[336953302,1725262245228,-511.7,0.00026301,2]
[336953303,1725262245237,-500.0,0.00026301,2]
[336953304,1725262245247,-500.0,0.00026301,2]
[336953305,1725262245255,-500.0,0.00026301,2]
[336953306,1725262245264,-762.61,0.00026301,2]
[336953307,1725262245274,-539.37,0.00026301,2]
[336953308,1725262245282,-500.0,0.00026301,2]
[336953309,1725262245291,-584.47,0.00026301,2]
[336953310,1725262245301,-665.89,0.00026301,2]
[336953311,1725262245310,-812.06,0.00026301,2]
[336953312,1725262245319,-500.0,0.00026301,2]
[336953313,1725262245329,-500.0,0.00026301,2]
[336953314,1725262245338,-907.85,0.00026301,2]
[336953315,1725262245347,-669.85,0.00026301,2]
[336953316,1725262245357,-500.0,0.00026301,2]
[336953317,1725262245366,-500.0,0.00026301,2]
[336953318,1725262245375,-735.31,0.00026301,2]
[336953319,1725262245384,-500.0,0.00026301,2]
[336953320,1725262245394,-500.0,0.00026301,2]
[336953321,1725262245403,-3961.61,0.00026301,2]
[336953322,1725262245412,-4283.18,0.00026301,2]
[336953323,1725262245421,-863.77,0.00026301,2]
[336953324,1725262245430,-500.0,0.00026301,2]
[336953325,1725262245439,-819.54,0.00026301,2]
[336953326,1725262245449,-733.53,0.00026301,2]
[336953327,1725262245457,-928.49,0.00026301,2]
[336953328,1725262245466,-500.0,0.00026301,2]
[336953329,1725262245475,-646.69,0.00026301,2]
[336953330,1725262245485,-1792.75,0.00026301,2]
[336953331,1725262245494,-1596.2,0.00026301,2]
[336953332,1725262245503,-741.08,0.00026301,2]
[336953333,1725262245512,-996.73,0.00026301,2]
[336953334,1725262245521,-615.2,0.00026301,2]
[336953335,1725262245531,-298.01061031,0.00026301,2]
[336953336,1725262245540,-500.0,0.00026301,2]
[336953337,1725262245551,-1112.24,0.00026301,2]
[336953338,1725262245560,-500.0,0.00026301,2]
[336953339,1725262245569,-583.99,0.00026301,2]
[336953340,1725262245579,-917.56988024,0.00026301,2]
[336953341,1725262245588,-155.99217396,0.00026467,2]
[336953342,1725262245598,-7458.94652043,0.0002649,2]
[336953343,1725262245608,-1694.8092388,0.00026565,3]
[336953344,1725262245617,-500.0,0.00026575,2]
[336953345,1725262245627,-185.61653586,0.00026575,2]
[336953346,1725262245636,-500.0,0.00026575,2]
[336953347,1725262245647,-500.0,0.00026575,2]
[336953349,1725262245656,-676.29,0.00026575,2]
[336953350,1725262245666,-378.38439036,0.00026575,2]
[336953351,1725262245675,-500.0,0.00026575,2]
[336953352,1725262245684,-500.0,0.00026575,2]
[336953353,1725262245693,-500.0,0.00026575,2]
[336953354,1725262245702,-287.46268201,0.00026575,2]
[336953355,1725262245711,-500.0,0.00026575,2]
[336953356,1725262245720,-500.0,0.00026575,2]
[336953357,1725262245730,-500.0,0.00026575,2]
[336953358,1725262245739,-500.0,0.00026575,2]
[336953359,1725262245748,-500.0,0.00026575,2]
[336953360,1725262245757,-500.0,0.00026575,2]
[336953361,1725262245766,-500.0,0.00026575,2]
[336953362,1725262245776,-1849.26,0.00026575,2]
[336953363,1725262245785,-500.0,0.00026575,2]
[336953364,1725262245795,-500.0,0.00026575,2]
[336953365,1725262245804,-500.0,0.00026575,2]
[336953366,1725262245813,-599.07,0.00026575,2]
[336953367,1725262245822,-500.0,0.00026575,2]
[336953368,1725262245832,-500.0,0.00026575,2]
[336953369,1725262245841,-500.0,0.00026575,2]
[336953370,1725262245850,-500.0,0.00026575,2]
[336953371,1725262245859,-500.0,0.00026575,2]
[336953372,1725262245870,-500.0,0.00026575,2]
[336953373,1725262245879,-500.0,0.00026575,2]
[336953374,1725262245889,-500.0,0.00026575,2]
[336953375,1725262245898,-514.87,0.00026575,2]
[336953376,1725262245908,-500.0,0.00026575,2]
[336953377,1725262245918,-593.85,0.00026575,2]
[336953378,1725262245927,-863.05,0.00026575,2]
[336953379,1725262245936,-500.0,0.00026575,2]
[336953380,1725262245946,-500.0,0.00026575,2]
[336953381,1725262245955,-500.0,0.00026575,2]
[336953382,1725262245964,-500.0,0.00026575,2]
[336953383,1725262245973,-500.0,0.00026575,2]
[336953384,1725262245982,-500.0,0.00026575,2]
[336953385,1725262245992,-640.64,0.00026575,2]
[336953386,1725262246001,-500.0,0.00026575,2]
[336953387,1725262246010,-684.54,0.00026575,2]
[336953388,1725262246019,-6194.28,0.00026575,2]
[336953389,1725262246033,-1209.96,0.00026575,2]
[336953390,1725262246042,-522.25,0.00026575,2]
[336953391,1725262246050,-701.22,0.00026575,2]
[336953392,1725262246059,-803.76,0.00026575,2]
[336953393,1725262246068,-838.04,0.00026575,2]
[336953395,1725262246078,-500.0,0.00026575,2]
[336953396,1725262246088,-1266.62,0.00026575,2]
[336953397,1725262246097,-1379.81,0.00026575,2]
[336953398,1725262246107,-1064.13,0.00026575,2]
[336953399,1725262246116,-500.0,0.00026575,2]
[336953400,1725262246125,-2481.98,0.00026575,2]
[336953401,1725262246135,-638.28,0.00026575,2]
[336953402,1725262246148,-1032.44,0.00026575,2]
[336953403,1725262246158,-514.74,0.00026575,2]
[336953404,1725262246168,-797.61,0.00026575,2]
[336953405,1725262246177,-558.61,0.00026575,2]
[336953406,1725262246187,-653.8,0.00026575,2]
[336953407,1725262246196,-767.69,0.00026575,2]
[336953408,1725262246206,-659.43,0.00026575,2]
[336953409,1725262246215,-657.66,0.00026575,2]
[336953410,1725262246225,-901.54,0.00026575,2]
[336953411,1725262246234,-1080.96,0.00026575,2]
[336953412,1725262246244,-904.35,0.00026575,2]
[336953413,1725262246253,-511.7,0.00026575,2]
[336953414,1725262246262,-500.0,0.00026575,2]
[336953415,1725262246271,-500.0,0.00026575,2]
[336953416,1725262246281,-500.0,0.00026575,2]
[336953417,1725262246290,-762.61,0.00026575,2]
[336953418,1725262246298,-539.37,0.00026575,2]
[336953419,1725262246308,-500.0,0.00026575,2]
[336953420,1725262246317,-584.47,0.00026575,2]
[336953421,1725262246326,-665.89,0.00026575,2]
[336953422,1725262246335,-812.06,0.00026575,2]
[336953423,1725262246345,-500.0,0.00026575,2]
[336953424,1725262246354,-500.0,0.00026575,2]
[336953425,1725262246364,-907.85,0.00026575,2]
[336953426,1725262246373,-669.85,0.00026575,2]
[336953427,1725262246383,-500.0,0.00026575,2]
[336953428,1725262246394,-500.0,0.00026575,2]
[336953429,1725262246404,-735.31,0.00026575,2]
[336953430,1725262246414,-500.0,0.00026575,2]
[336953431,1725262246423,-500.0,0.00026575,2]
[336953432,1725262246432,-3961.61,0.00026575,2]
[336953433,1725262246442,-4283.18,0.00026575,2]
[336953434,1725262246451,-863.77,0.00026575,2]
[336953435,1725262246461,-500.0,0.00026575,2]
[336953436,1725262246473,-819.54,0.00026575,2]
[336953437,1725262246483,-733.53,0.00026575,2]
[336953438,1725262246493,-928.49,0.00026575,2]
[336953439,1725262246502,-500.0,0.00026575,2]
[336953440,1725262246512,-646.69,0.00026575,2]
[336953441,1725262246522,-1792.75,0.00026575,2]
[336953442,1725262246531,-1596.2,0.00026575,2]
[336953443,1725262246539,-741.08,0.00026575,2]
[336953444,1725262246549,-996.73,0.00026575,2]
[336953445,1725262246558,-615.2,0.00026575,2]
[336953446,1725262246568,-500.0,0.00026575,2]
[336953447,1725262246577,-1112.24,0.00026575,2]
[336953448,1725262246586,-500.0,0.00026575,2]
[336953449,1725262246595,-583.99,0.00026575,2]
[336953450,1725262246604,-1500.0,0.00026719,2]
[336953451,1725262246613,-1500.0,0.00026719,2]
[336953452,1725262246623,-847.4046194,0.00026839,3]
[336953453,1725262246633,-151.0,0.00026849,7]
[336953454,1725262246644,-500.0,0.00026849,2]
[336953455,1725262246654,-500.0,0.00026849,2]
[336953456,1725262246663,-500.0,0.00026849,2]
[336953457,1725262246672,-676.29,0.00026849,2]
[336953458,1725262246682,-500.0,0.00026849,2]
[336953459,1725262246691,-500.0,0.00026849,2]
[336953460,1725262246700,-500.0,0.00026849,2]
[336953461,1725262246709,-500.0,0.00026849,2]
[336953462,1725262246718,-500.0,0.00026849,2]
[336953463,1725262246727,-500.0,0.00026849,2]
[336953464,1725262246736,-500.0,0.00026849,2]
[336953465,1725262246745,-500.0,0.00026849,2]
[336953466,1725262246754,-500.0,0.00026849,2]
[336953467,1725262246763,-500.0,0.00026849,2]
[336953468,1725262246772,-1849.26,0.00026849,2]
[336953469,1725262246781,-500.0,0.00026849,2]
[336953470,1725262246791,-500.0,0.00026849,2]
[336953471,1725262246800,-500.0,0.00026849,2]
[336953472,1725262246809,-599.07,0.00026849,2]
[336953473,1725262246818,-500.0,0.00026849,2]
[336953474,1725262246827,-500.0,0.00026849,2]
[336953475,1725262246837,-500.0,0.00026849,2]
[336953476,1725262246845,-500.0,0.00026849,2]
[336953477,1725262246855,-500.0,0.00026849,2]
[336953478,1725262246864,-500.0,0.00026849,2]
[336953479,1725262246873,-500.0,0.00026849,2]
[336953480,1725262246883,-500.0,0.00026849,2]
[336953481,1725262246894,-514.87,0.00026849,2]
[336953482,1725262246903,-500.0,0.00026849,2]
[336953483,1725262246913,-593.85,0.00026849,2]
[336953484,1725262246922,-863.05,0.00026849,2]
[336953485,1725262246932,-624.1284144,0.00026849,2]
[336953486,1725262246941,-500.0,0.00026849,2]
[336953487,1725262246950,-500.0,0.00026849,2]
[336953488,1725262246960,-331.35283773,0.00026849,2]
[336953489,1725262246969,-327.26237355,0.00026849,2]
[336953490,1725262246978,-500.0,0.00026849,2]
[336953491,1725262246987,-640.64,0.00026849,2]
[336953492,1725262246996,-500.0,0.00026849,2]
[336953493,1725262247005,-684.54,0.00026849,2]
[336953494,1725262247014,-6194.28,0.00026849,2]
[336953495,1725262247024,-1209.96,0.00026849,2]
[336953496,1725262247040,-522.25,0.00026849,2]
[336953497,1725262247173,-701.22,0.00026849,2]
[336953498,1725262247183,-803.76,0.00026849,2]
[336953499,1725262247192,-838.04,0.00026849,2]
[336953500,1725262247201,-500.0,0.00026849,2]
[336953501,1725262247210,-1266.62,0.00026849,2]
[336953502,1725262247219,-1379.81,0.00026849,2]
[336953503,1725262247229,-1064.13,0.00026849,2]
[336953504,1725262247238,-2481.98,0.00026849,2]
[336953505,1725262247248,-500.0,0.00026849,2]
[336953506,1725262247257,-638.28,0.00026849,2]
[336953507,1725262247268,-1032.44,0.00026849,2]
[336953508,1725262247277,-514.74,0.00026849,2]
[336953509,1725262247287,-797.61,0.00026849,2]
[336953510,1725262247296,-558.61,0.00026849,2]
[336953511,1725262247304,-653.8,0.00026849,2]
[336953512,1725262247314,-767.69,0.00026849,2]
[336953513,1725262247323,-659.43,0.00026849,2]
[336953514,1725262247332,-657.66,0.00026849,2]
[336953515,1725262247341,-901.54,0.00026849,2]
[336953516,1725262247350,-1080.96,0.00026849,2]
[336953517,1725262247359,-904.35,0.00026849,2]
[336953518,1725262247369,-511.7,0.00026849,2]
[336953519,1725262247378,-500.0,0.00026849,2]
[336953520,1725262247388,-500.0,0.00026849,2]
[336953521,1725262247399,-500.0,0.00026849,2]
[336953522,1725262247409,-762.61,0.00026849,2]
[336953523,1725262247418,-539.37,0.00026849,2]
[336953524,1725262247427,-500.0,0.00026849,2]
[336953525,1725262247437,-584.47,0.00026849,2]
[336953526,1725262247446,-665.89,0.00026849,2]
[336953527,1725262247455,-812.06,0.00026849,2]
[336953528,1725262247465,-500.0,0.00026849,2]
[336953529,1725262247473,-500.0,0.00026849,2]
[336953530,1725262247482,-907.85,0.00026849,2]
[336953531,1725262247492,-669.85,0.00026849,2]
[336953532,1725262247501,-500.0,0.00026849,2]
[336953533,1725262247510,-500.0,0.00026849,2]
[336953534,1725262247519,-735.31,0.00026849,2]
[336953535,1725262247528,-500.0,0.00026849,2]
[336953536,1725262247538,-500.0,0.00026849,2]
[336953537,1725262247547,-3961.61,0.00026849,2]
[336953538,1725262247556,-4283.18,0.00026849,2]
[336953539,1725262247565,-863.77,0.00026849,2]
[336953540,1725262247575,-575.12957851,0.00026849,2]
[336953541,1725262247584,-819.54,0.00026849,2]
[336953542,1725262247594,-733.53,0.00026849,2]
[336953543,1725262247603,-928.49,0.00026849,2]
[336953544,1725262247613,-233.47393105,0.00026849,2]
[336953545,1725262247622,-646.69,0.00026849,2]
[336953546,1725262247632,-1792.75,0.00026849,2]
[336953547,1725262247643,-1596.2,0.00026849,2]
[336953548,1725262247652,-741.08,0.00026849,2]
[336953549,1725262247662,-996.73,0.00026849,2]
[336953550,1725262247671,-615.2,0.00026849,2]
[336953551,1725262247680,-500.0,0.00026849,2]
[336953552,1725262247690,-1112.24,0.00026849,2]
[336953553,1725262247699,-500.0,0.00026849,2]
[336953554,1725262247709,-583.99,0.00026849,2]
[336953555,1725262247718,-500.0,0.00026982,10]
[336953556,1725262247729,-500.0,0.00027,2]
[336953557,1725262247738,-159.0,0.00027,2]
[336953558,1725262247748,-336552.8705671,0.00027,3]
[336953559,1725262247757,-154.67226454,0.00027,120]
[336953560,1725262247767,-186.65259431,0.00027,120]
[336953561,1725262247776,-165.51112066,0.00027,120]
[336953562,1725262247787,-2345.37,0.00027,14]
[336953563,1725262247796,-155.99217396,0.00027023,2]
[336953564,1725262247806,-415.886254,0.00027068,2]
[336953565,1725262247815,-420.0,0.00027122,2]
[336953566,1725262247824,-500.0,0.00027123,2]
[336953567,1725262247834,-500.0,0.00027123,2]
[336953568,1725262247843,-500.0,0.00027123,2]
[336953569,1725262247852,-676.29,0.00027123,2]
[336953570,1725262247862,-500.0,0.00027123,2]
[336953571,1725262247871,-500.0,0.00027123,2]
[336953572,1725262247880,-500.0,0.00027123,2]
[336953573,1725262247892,-500.0,0.00027123,2]
[336953574,1725262247901,-500.0,0.00027123,2]
[336953575,1725262247911,-500.0,0.00027123,2]
[336953576,1725262247920,-500.0,0.00027123,2]
[336953577,1725262247929,-507.11793417,0.00027123,2]
[336953578,1725262247939,-500.0,0.00027123,2]
[336953579,1725262247948,-500.0,0.00027123,2]
[336953580,1725262247957,-1849.26,0.00027123,2]
[336953581,1725262247966,-500.0,0.00027123,2]
[336953582,1725262247976,-500.0,0.00027123,2]
[336953583,1725262247986,-500.0,0.00027123,2]
[336953584,1725262247995,-599.07,0.00027123,2]
[336953585,1725262248005,-462.44094112,0.00027123,2]
[336953586,1725262248014,-500.0,0.00027123,2]
[336953587,1725262248025,-500.0,0.00027123,2]
[336953588,1725262248038,-500.0,0.00027123,2]
[336953589,1725262248047,-500.0,0.00027123,2]
[336953590,1725262248056,-500.0,0.00027123,2]
[336953591,1725262248066,-500.0,0.00027123,2]
[336953592,1725262248077,-500.0,0.00027123,2]
[336953593,1725262248086,-514.87,0.00027123,2]
[336953594,1725262248095,-500.0,0.00027123,2]
[336953595,1725262248104,-593.85,0.00027123,2]
[336953596,1725262248114,-863.05,0.00027123,2]
[336953597,1725262248123,-500.0,0.00027123,2]
[336953598,1725262248133,-500.0,0.00027123,2]
[336953599,1725262248142,-500.0,0.00027123,2]
[336953600,1725262248153,-640.64,0.00027123,2]
[336953601,1725262248162,-500.0,0.00027123,2]
[336953602,1725262248171,-684.54,0.00027123,2]
[336953603,1725262248180,-6194.28,0.00027123,2]
[336953604,1725262248190,-1209.96,0.00027123,2]
[336953605,1725262248199,-701.22,0.00027123,2]
[336953606,1725262248208,-522.25,0.00027123,2]
[336953607,1725262248217,-803.76,0.00027123,2]
[336953608,1725262248226,-838.04,0.00027123,2]
[336953609,1725262248235,-500.0,0.00027123,2]
[336953610,1725262248244,-1266.62,0.00027123,2]
[336953611,1725262248254,-1379.81,0.00027123,2]
[336953612,1725262248263,-1064.13,0.00027123,2]
[336953613,1725262248272,-500.0,0.00027123,2]
[336953614,1725262248281,-2481.98,0.00027123,2]
[336953615,1725262248291,-638.28,0.00027123,2]
[336953616,1725262248301,-1032.44,0.00027123,2]
[336953617,1725262248310,-514.74,0.00027123,2]
[336953618,1725262248320,-797.61,0.00027123,2]
[336953619,1725262248329,-558.61,0.00027123,2]
[336953620,1725262248339,-653.8,0.00027123,2]
[336953621,1725262248348,-767.69,0.00027123,2]
[336953622,1725262248357,-659.43,0.00027123,2]
[336953623,1725262248367,-657.66,0.00027123,2]
[336953624,1725262248375,-901.54,0.00027123,2]
[336953625,1725262248385,-1080.96,0.00027123,2]
[336953626,1725262248395,-904.35,0.00027123,2]
[336953627,1725262248405,-511.7,0.00027123,2]
[336953628,1725262248414,-500.0,0.00027123,2]
[336953629,1725262248424,-500.0,0.00027123,2]
[336953630,1725262248433,-500.0,0.00027123,2]
[336953631,1725262248442,-762.61,0.00027123,2]
[336953632,1725262248452,-539.37,0.00027123,2]
[336953633,1725262248462,-500.0,0.00027123,2]
[336953634,1725262248471,-584.47,0.00027123,2]
[336953635,1725262248480,-665.89,0.00027123,2]
[336953636,1725262248489,-812.06,0.00027123,2]
[336953637,1725262248498,-500.0,0.00027123,2]
[336953638,1725262248508,-500.0,0.00027123,2]
[336953639,1725262248517,-907.85,0.00027123,2]
[336953640,1725262248527,-669.85,0.00027123,2]
[336953641,1725262248536,-500.0,0.00027123,2]
[336953642,1725262248546,-500.0,0.00027123,2]
[336953643,1725262248556,-735.31,0.00027123,2]
[336953644,1725262248566,-500.0,0.00027123,2]
[336953645,1725262248575,-500.0,0.00027123,2]
[336953646,1725262248585,-3961.61,0.00027123,2]
[336953647,1725262248595,-4283.18,0.00027123,2]
[336953648,1725262248604,-863.77,0.00027123,2]
[336953649,1725262248614,-819.54,0.00027123,2]
[336953650,1725262248623,-733.53,0.00027123,2]
[336953651,1725262248633,-928.49,0.00027123,2]
[336953652,1725262248644,-646.69,0.00027123,2]
[336953653,1725262248653,-791.72527057,0.00027123,2]
[336953654,1725262249086,-500.0,0.00024657,2]
[336953655,1725262249095,-500.0,0.00024657,2]
[336953656,1725262249104,-500.0,0.00024657,2]
[336953657,1725262249115,-500.0,0.00024657,2]
[336953658,1725262249124,-500.0,0.00024931,2]
[336953659,1725262249134,-500.0,0.00024931,2]
[336953660,1725262249145,-900.42,0.00025205,2]
[336953661,1725262249156,-502.73692662,0.00025205,2]
[336953662,1725262249166,-500.0,0.00025205,2]
[336953663,1725262249175,-900.42,0.00025479,2]
[336953664,1725262249185,-500.0,0.00025479,2]
[336953665,1725262249194,-900.42,0.00025753,2]
[336953666,1725262249203,-500.0,0.00025753,2]
[336953667,1725262249213,-900.42,0.00026027,2]
[336953668,1725262249222,-900.42,0.00026301,2]
[336953669,1725262249231,-900.42,0.00026575,2]
[336953670,1725262249240,-900.42,0.00026849,2]
[336953671,1725262249249,-151.0,0.00027,7]
[336953672,1725262249259,-1001.02472943,0.00027123,2]
[336953673,1725262249268,-1596.2,0.00027123,2]
[336953674,1725262249278,-741.08,0.00027123,2]
[336953675,1725262249287,-996.73,0.00027123,2]
[336953676,1725262249297,-615.2,0.00027123,2]
[336953677,1725262249306,-500.0,0.00027123,2]
[336953678,1725262249316,-1112.24,0.00027123,2]
[336953679,1725262249325,-500.0,0.00027123,2]
[336953680,1725262249335,-583.99,0.00027123,2]
[336953681,1725262249344,-900.42,0.00027123,2]
[336953682,1725262249353,-267.0,0.00027123,2]
[336953683,1725262249362,-750.5975109,0.00027142,2]
[336953684,1725262249372,-1000.0,0.00027189,2]
[336953685,1725262249381,-1000.0,0.0002719,2]
[336953686,1725262249391,-1000.0,0.00027196,2]
[336953687,1725262249401,-1040.90706865,0.00027224,2]
[336953688,1725262249411,-1000.0,0.00027292,2]
[336953689,1725262249421,-1000.0,0.00027292,2]
[336953690,1725262249430,-1000.0,0.00027313,2]
[336953691,1725262249439,-1000.0,0.00027332,2]
[336953692,1725262249449,-1000.0,0.0002735,2]
[336953693,1725262249459,-1000.0,0.00027366,2]
[336953694,1725262249469,-207.943127,0.0002737,2]
[336953695,1725262249479,-408.10897088,0.00027396,2]
[336953696,1725262249489,-12009.82229254,0.00027396,2]
[336953697,1725262249500,-500.0,0.00027397,2]
[336953698,1725262249511,-500.0,0.00027397,2]
[336953699,1725262249521,-500.0,0.00027397,2]
[336953700,1725262249531,-676.29,0.00027397,2]
[336953701,1725262249541,-500.0,0.00027397,2]
[336953702,1725262249550,-500.0,0.00027397,2]
[336953703,1725262249560,-500.0,0.00027397,2]
[336953704,1725262249570,-505.92795691,0.00027397,2]
[336953705,1725262249579,-579.89570406,0.00027397,2]
[336953706,1725262249588,-500.0,0.00027397,2]
[336953707,1725262249598,-500.0,0.00027397,7]
[336953708,1725262249608,-539.52578357,0.00027397,7]
[336953709,1725262249617,-500.0,0.00027397,2]
[336953710,1725262249627,-500.0,0.00027397,2]
[336953711,1725262249638,-500.0,0.00027397,2]
[336953712,1725262249648,-500.0,0.00027397,2]
[336953713,1725262249658,-500.0,0.00027397,2]
[336953714,1725262249667,-500.0,0.00027397,2]
[336953715,1725262249676,-500.0,0.00027397,2]
[336953716,1725262249686,-1849.26,0.00027397,2]
[336953717,1725262249695,-500.0,0.00027397,2]
[336953718,1725262249704,-500.0,0.00027397,2]
[336953719,1725262249715,-500.0,0.00027397,2]
[336953720,1725262249724,-599.07,0.00027397,2]
[336953721,1725262249733,-500.0,0.00027397,2]
[336953722,1725262249743,-500.0,0.00027397,2]
[336953723,1725262249752,-500.0,0.00027397,2]
[336953724,1725262249762,-500.0,0.00027397,2]
[336953725,1725262249772,-500.0,0.00027397,2]
[336953726,1725262249781,-500.0,0.00027397,2]
[336953727,1725262249790,-500.0,0.00027397,2]
[336953728,1725262249800,-514.87,0.00027397,2]
[336953729,1725262249810,-500.0,0.00027397,2]
[336953730,1725262249820,-593.85,0.00027397,2]
[336953731,1725262249830,-863.05,0.00027397,2]
[336953732,1725262249838,-151.0,0.00027397,4]
[336953733,1725262249848,-500.0,0.00027397,2]
[336953734,1725262249858,-500.0,0.00027397,2]
[336953735,1725262249868,-500.0,0.00027397,2]
[336953736,1725262249878,-640.64,0.00027397,2]
[336953737,1725262249888,-500.0,0.00027397,2]
[336953738,1725262249899,-684.54,0.00027397,2]
[336953739,1725262249909,-6194.28,0.00027397,2]
[336953740,1725262249919,-1209.96,0.00027397,2]
[336953741,1725262249928,-701.22,0.00027397,2]
[336953742,1725262249938,-522.25,0.00027397,2]
[336953743,1725262249948,-803.76,0.00027397,2]
[336953744,1725262249957,-838.04,0.00027397,2]
[336953745,1725262249967,-500.0,0.00027397,2]
[336953746,1725262249976,-1266.62,0.00027397,2]
[336953747,1725262249985,-1379.81,0.00027397,2]
[336953748,1725262249996,-1064.13,0.00027397,2]
[336953749,1725262250005,-420.6813991,0.00027397,2]
[336953750,1725262250015,-2481.98,0.00027397,2]
[336953751,1725262250025,-638.28,0.00027397,2]
[336953752,1725262250037,-1032.44,0.00027397,2]
[336953753,1725262250047,-514.74,0.00027397,2]
[336953754,1725262250056,-797.61,0.00027397,2]
[336953755,1725262250065,-558.61,0.00027397,2]
[336953756,1725262250075,-653.8,0.00027397,2]
[336953757,1725262250084,-767.69,0.00027397,2]
[336953758,1725262250093,-659.43,0.00027397,2]
[336953759,1725262250102,-657.66,0.00027397,2]
[336953760,1725262250113,-901.54,0.00027397,2]
[336953761,1725262250122,-1080.96,0.00027397,2]
[336953762,1725262250131,-904.35,0.00027397,2]
[336953763,1725262250140,-511.7,0.00027397,2]
[336953764,1725262250151,-500.0,0.00027397,2]
[336953765,1725262250161,-500.0,0.00027397,2]
[336953766,1725262250170,-500.0,0.00027397,2]
[336953767,1725262250179,-762.61,0.00027397,2]
[336953768,1725262250315,-539.37,0.00027397,2]
[336953769,1725262250325,-500.0,0.00027397,2]
[336953770,1725262250334,-584.47,0.00027397,2]
[336953771,1725262250343,-665.89,0.00027397,2]
[336953772,1725262250352,-812.06,0.00027397,2]
[336953773,1725262250362,-500.0,0.00027397,2]
[336953774,1725262250371,-500.0,0.00027397,2]
[336953775,1725262250380,-907.85,0.00027397,2]
[336953776,1725262250389,-669.85,0.00027397,2]
[336953777,1725262250400,-500.0,0.00027397,2]
[336953778,1725262250415,-500.0,0.00027397,2]
[336953779,1725262250424,-735.31,0.00027397,2]
[336953780,1725262250433,-500.0,0.00027397,2]
[336953781,1725262250442,-500.0,0.00027397,2]
[336953782,1725262250450,-3961.61,0.00027397,2]
[336953783,1725262250459,-4283.18,0.00027397,2]
[336953784,1725262250468,-863.77,0.00027397,2]
[336953785,1725262250477,-819.54,0.00027397,2]
[336953786,1725262250486,-733.53,0.00027397,2]
[336953787,1725262250495,-928.49,0.00027397,2]
[336953788,1725262250504,-646.69,0.00027397,2]
[336953789,1725262250512,-1792.75,0.00027397,2]
[336953790,1725262250522,-1596.2,0.00027397,2]
[336953791,1725262250531,-741.08,0.00027397,2]
[336953792,1725262250540,-996.73,0.00027397,2]
[336953793,1725262250550,-615.2,0.00027397,2]
[336953794,1725262250560,-500.0,0.00027397,2]
[336953795,1725262250569,-1112.24,0.00027397,2]
[336953796,1725262250579,-500.0,0.00027397,2]
[336953797,1725262250588,-583.99,0.00027397,2]
[336953798,1725262250598,-900.42,0.00027397,2]
[336953799,1725262250607,-400.0,0.00027397,60]
[336953800,1725262250617,-168.596547,0.00027397,7]
[336953801,1725262250627,-168.596547,0.00027397,7]
[336953802,1725262250636,-168.596547,0.00027397,7]